[Event "European Women Blitz-ch 2024"]
[Site "Monaco"]
[Date "2025.01.10"]
[Round "6.13"]
[White "Atalik, Ekaterina"]
[Black "Javakhishvili, Lela"]
[Result "0-1"]
[Annotator "TA"]
[ECO "D35"]
[WhiteElo "2395"]
[BlackElo "2426"]
[PlyCount "107"]
[EventDate "2025.01.06"]
[EventType "swiss"]
[EventCountry "MNC"]
[SourceTitle "playchess.com"]
[Source "ChessBase"]
[SourceQuality "1"]
[TimeControl "180+2"]

{[%evp 15,107,16,29,19,20,22,24,10,23,26,41,18,18,13,27,16,31,27,6,-3,-5,-72,-25,-9,13,-27,-28,-60,-48,-34,-25,-100,-104,-98,67,-185,-188,-209,-65,-54,-54,-105,-106,-102,-101,-105,-105,-229,-219,-272,-226,-318,-291,-434,-677,-741,-740,-738,-731,-1996,-1020,-2074,-2064,-2691,-2661,-5383,-5365,-5061,-1815,-1891,-1732,-29972,-29973,-29974,-29975,-29976,-29977,-29976,-29977,-29978,-29979,-29980,-29981,-29981,-29982,-29981,-29980,-29984,-29985,-29985,-29986,-29986,-29987,-29987]} 1. d4 {[%emt 0:00:01]} Nf6 {[%emt 0:00:02]} 2. c4 {[%emt 0:00:02]} e6 {[%emt 0:00:01]} 3. Nc3 {[%emt 0:00:01]} d5 {[%emt 0:00:01]} 4. cxd5 {[%emt 0:00:02]} exd5 {[%emt 0:00:02]} 5. Bg5 {[%emt 0:00:02]} h6 {[%emt 0:00:04]} 6. Bh4 {[%emt 0:00:04]} Be7 {[%emt 0:00:01]} 7. e3 {[%emt 0:00:02]} O-O {[%emt 0:00:03]} 8. Bd3 {[%emt 0:00:02]} Re8 {[%emt 0:00:03]} 9. Nge2 {[%emt 0:00:06]} c6 {[%emt 0:00:03]} 10. O-O {[%emt 0:00:03]} a5 {[%emt 0:00:01]} 11. Qc2 {[%emt 0:00:02]} Na6 {[%emt 0:00:01]} 12. a3 {[%emt 0:00:01] Wards off Nb4} b5 {[%emt 0:00:01]} 13. f3 {[%emt 0:00:16]} Nc7 {[%emt 0:00:04]} 14. Bf2 {[%emt 0:00:05]} Ba6 {[%emt 0:00:05]} 15. e4 {[%emt 0:00:06]} dxe4 {[%emt 0:00:04]} 16. Nxe4 {[%emt 0:00:12]} b4 {[%emt 0:00:49]} 17. Nxf6+ {[%emt 0:00:21]} Bxf6 {[%emt 0:00:03]} 18. Be4 {[%emt 0:00:06]} (18. Bxa6 $11 Nxa6 19. Rfd1) 18... Nd5 {[%emt 0:00:08]} (18... b3 $17 19. Qd1 Bxe2 20. Qxe2 Bxd4) 19. Rfe1 {[%emt 0:00:05]} Bb5 {[%emt 0:00:10]} 20. Ng3 {[%emt 0:00:21]} a4 {[%emt 0:00:14]} 21. Rad1 {[%emt 0:00:04]} bxa3 {[%emt 0:00:02]} 22. bxa3 {[%emt 0:00:01]} Qd6 {[%emt 0:00:01]} 23. Qc5 {[%emt 0:00:38]} (23. Qb2 $11 {keeps the balance.}) 23... Qxc5 $17 {[%emt 0:00:10]} 24. dxc5 {[%emt 0:00:02]} Bb2 $2 {[%emt 0:00:07] Black is more active.} (24... Bc3 $17 25. Nf5 Bxe1 26. Bxe1 Nf6) 25. Nf5 $2 {[%emt 0:00:05][%mdl 8192]} (25. Rb1 $14 {stays ahead.} Bxa3 (25... Bc3 $2 26. Rec1 $18) 26. Bxd5 Rxe1+ 27. Bxe1 Bxc5+ 28. Bf2 Bxf2+ (28... Bd3 29. Rd1 $16) 29. Kxf2) 25... Nc3 $19 {[%emt 0:00:11]} (25... Bxa3 26. Nd6 Reb8 27. Bd4 $11) 26. Rd2 {[%emt 0:00:01]} Nxe4 {[%emt 0:00:01]} ({Better is} 26... Bxa3 $19 {and ...Bb4 should not be overlooked} 27. Bd4 Bb4) 27. Rxb2 $15 {[%emt 0:00:02]} Nxf2 {[%emt 0:00:05]} 28. Rxe8+ {[%emt 0:00:30]} (28. Kxf2 $15 Rxe1 29. Kxe1 Re8+ 30. Kd2 Re2+ 31. Kc3) 28... Rxe8 $17 {[%emt 0:00:01]} 29. Kxf2 $19 {[%emt 0:00:02][%mdl 4096] Endgame KRB-KRN} Re5 $1 {[%emt 0:00:01][%csl LRc5,LRf5]} 30. Nd4 {[%emt 0:00:12]} Rxc5 {[%emt 0:00:02]} 31. Ke3 {[%emt 0:00:04]} (31. Rc2 $17 Rxc2+ 32. Nxc2) 31... Rc3+ {[%emt 0:00:04]} 32. Ke4 {[%emt 0:00:02]} Bd3+ {[%emt 0:00:09]} 33. Kf4 {[%emt 0:00:05]} (33. Ke5) 33... c5 {[%emt 0:00:09]} ({Resist} 33... Rxa3 34. Rb8+ Kh7 35. Nxc6 $19) 34. Nb5 {[%emt 0:00:09]} (34. Ne2 {was worth a try.} Rxa3 35. Ke5) 34... Rb3 {[%emt 0:00:04]} 35. Rxb3 {[%emt 0:00:02]} axb3 {[%emt 0:00:01] KB-KN. Black is a pawn up.} 36. Nc3 {[%emt 0:00:02]} b2 {[%emt 0:00:01]} 37. Ke5 {[%emt 0:00:03]} b1=Q {[%emt 0:00:18]} 38. Nxb1 {[%emt 0:00:02]} Bxb1 {[%emt 0:00:01] KB-KP} 39. Kd5 {[%emt 0:00:01]} f5 {[%emt 0:00:05]} 40. Kxc5 {[%emt 0:00:01]} f4 {[%emt 0:00:03]} 41. Kd4 {[%emt 0:00:01] Dodges Bd3} Kf7 {[%emt 0:00:02]} (41... Bc2 $142 42. Kc3 Bd1) 42. Ke5 {[%emt 0:00:02]} g5 {[%emt 0:00:03] ( -> ...Bd3)} 43. a4 {[%emt 0:00:01]} Bd3 {[%emt 0:00:01]} 44. a5 {[%emt 0:00:01]} Bf1 {[%emt 0:00:02]} 45. g3 {[%emt 0:00:04] [#]} fxg3 $1 {[%emt 0:00:04]} 46. hxg3 {[%emt 0:00:00] KB-K3P} Kg6 {[%emt 0:00:01]} 47. Ke4 {[%emt 0:00:05]} h5 {[%emt 0:00:03]} 48. Ke3 {[%emt 0:00:01]} Kf5 {[%emt 0:00:01]} 49. Kf2 {[%emt 0:00:08]} Ba6 {[%emt 0:00:02]} 50. Ke3 {[%emt 0:00:01]} Ke5 {[%emt 0:00:07]} 51. f4+ {[%emt 0:00:04]} gxf4+ {[%emt 0:00:01]} 52. gxf4+ {[%emt 0:00:00]} Kf5 {[%emt 0:00:01]} 53. Kf3 {[%emt 0:00:01]} h4 {[%emt 0:00:03]} 54. Ke3 {[%emt 0:00:13]} 0-1

[Event "European Women Blitz-ch 2024"]
[Site "Monaco"]
[Date "2025.01.10"]
[Round "6.14"]
[White "Hejazipour, Mitra"]
[Black "Khotenashvili, Bella"]
[Result "0-1"]
[Annotator "TA"]
[ECO "A40"]
[WhiteElo "2310"]
[BlackElo "2420"]
[PlyCount "102"]
[EventDate "2025.01.06"]
[EventType "swiss"]
[EventCountry "MNC"]
[SourceTitle "playchess.com"]
[Source "ChessBase"]
[SourceQuality "1"]
[TimeControl "180+2"]

{[%evp 14,102,4,5,25,28,74,55,52,56,128,129,117,24,146,145,142,46,31,46,46,21,31,29,27,6,0,-12,-1,-20,-26,-30,-20,-21,0,-8,-7,-4,0,-33,-32,-124,-133,-318,-8,-149,-30,-77,-32,-31,-39,-222,-218,-220,-200,-251,-243,-303,-281,-637,-252,-252,-247,-450,-453,-438,-437,-509,-497,-689,-591,-679,-686,-671,-639,-887,-581,-555,-508,-422,-395,-29979,-500,-493,-461,-481,-407,-29982,-29983,-29983,-29984]} 1. d4 {[%emt 0:00:02]} Nf6 {[%emt 0:00:13]} 2. Nf3 {[%emt 0:00:01]} g6 {[%emt 0:00:01]} 3. Nbd2 {[%emt 0:00:04]} Bg7 {[%emt 0:00:06]} 4. e4 {[%emt 0:00:03]} O-O {[%emt 0:00:03]} 5. Bd3 {[%emt 0:00:02]} d6 {[%emt 0:00:06]} 6. O-O {[%emt 0:00:05]} c5 {[%emt 0:00:23]} 7. d5 {[%emt 0:00:20]} e6 {[%emt 0:00:25]} 8. c4 {[%emt 0:00:15]} Nh5 {[%emt 0:00:07]} 9. Re1 {[%emt 0:00:17]} e5 {[%emt 0:00:08]} (9... Re8 $11) 10. g3 {[%emt 0:00:17]} Bg4 {[%emt 0:00:24]} 11. Bf1 {[%emt 0:00:05]} f5 {[%emt 0:00:05]} (11... Na6 $14) 12. h3 $16 {[%emt 0:00:12]} Bxf3 {[%emt 0:00:29]} 13. Qxf3 {[%emt 0:00:14]} (13. Nxf3 $16 {exf5 would now be deadly.} f4 14. g4) 13... Nd7 {[%emt 0:00:17]} (13... Bh6 $1 $11) 14. exf5 {[%emt 0:00:09]} Rxf5 {[%emt 0:00:01]} 15. Qg2 {[%emt 0:00:08]} ({White should try} 15. Qb3 $16) 15... Bh6 $1 $14 {[%emt 0:00:25]} 16. Bd3 {[%emt 0:00:17]} Rf8 {[%emt 0:00:06]} 17. Ne4 {[%emt 0:00:04][%csl LRd6,LRh6]} Bxc1 {[%emt 0:00:01]} 18. Raxc1 {[%emt 0:00:02]} Qe7 {[%emt 0:00:02]} 19. Be2 {[%emt 0:00:06]} Ng7 {[%emt 0:00:02]} 20. h4 {[%emt 0:00:07]} Nf6 {[%emt 0:00:02]} 21. Ng5 {[%emt 0:00:09]} h6 {[%emt 0:00:02]} 22. Ne4 {[%emt 0:00:05]} Nxe4 {[%emt 0:00:04]} 23. Qxe4 {[%emt 0:00:01]} Qf6 {[%emt 0:00:01]} 24. Rf1 {[%emt 0:00:08]} Nf5 {[%emt 0:00:03]} 25. Bd3 {[%emt 0:00:05]} Kg7 {[%emt 0:00:02]} 26. Qg4 {[%emt 0:00:05]} h5 {[%emt 0:00:03]} 27. Qh3 {[%emt 0:00:04]} (27. Qf3 $15) 27... Nd4 $17 {[%emt 0:00:01] And now ...Rae8 would win.} 28. Qg2 $2 {[%emt 0:00:20]} (28. Rcd1 $17) 28... Rf7 $2 {[%emt 0:00:06]} ({Black should try} 28... e4 $1 $19 29. Qxe4 Nf3+ (29... Rae8 $2 30. Qg2 $19) 30. Kg2 Rae8 (30... Qxb2 31. Qxg6+ Kh8 32. Qh7#)) 29. Qe4 {[%emt 0:00:01] [#]} (29. f4 $11) 29... Raf8 {[%emt 0:00:03]} (29... Nf3+ $1 $17 30. Kg2 Nd2) 30. f4 {[%emt 0:00:02]} (30. Kg2 $11) 30... exf4 {[%emt 0:00:06]} 31. Rxf4 {[%emt 0:00:01]} Nf5 $36 {[%emt 0:00:00][%mdl 2048] Black fights for an advantage.} 32. Qf3 $2 {[%emt 0:00:06]} (32. Rc2 $15) 32... Qxb2 $19 {[%emt 0:00:03]} (32... Nxh4 33. Qe3 Re7 (33... Qxb2 $2 34. Rxf7+ Rxf7 35. gxh4 $18) 34. Rxf6) 33. Rf1 {[%emt 0:00:05] [#]} Qe5 $1 {[%emt 0:00:03]} (33... Qxa2 34. Bxf5 Rxf5 35. Qc3+ Kg8 36. Ra1 $11) 34. Bxf5 {[%emt 0:00:03]} Rxf5 {[%emt 0:00:00]} 35. Rxf5 {[%emt 0:00:01]} Rxf5 {[%emt 0:00:01][%mdl 4096] Endgame KQR-KQR. Black is a pawn up.} (35... gxf5 36. Kg2 $17) 36. Qg2 $2 {[%emt 0:00:02]} (36. Qb3) 36... Qd4+ $2 {[%emt 0:00:01]} (36... Rxf1+ 37. Qxf1 Qxg3+ 38. Kh1 Qxh4+ 39. Kg1 Qd4+ 40. Kg2 b5 41. cxb5 Qxd5+ 42. Kh2 c4 (42... Qxa2+ $2 43. Kg1 $19)) 37. Kh2 {[%emt 0:00:02]} Qxc4 {[%emt 0:00:02]} 38. Rxf5 $2 {[%emt 0:00:01]} (38. Qb2+ Qd4 39. Qxb7+ Kf6 40. Rxf5+ gxf5 41. Qd7 Qxd5 42. Qd8+ Ke5 43. Qh8+ Ke4 44. Qxh5) 38... gxf5 {[%emt 0:00:01] KQ-KQ. Black is two pawns up.} 39. Qb2+ {[%emt 0:00:02]} Kg6 {[%emt 0:00:01]} 40. Qxb7 {[%emt 0:00:01]} Qe2+ {[%emt 0:00:01]} 41. Kh3 {[%emt 0:00:01]} Qf1+ {[%emt 0:00:02]} ({Stronger than} 41... Qxa2 42. Qc6 Qb1 43. Qe8+ (43. Qxd6+ Kf7 $11) 43... Kg7 44. Qe7+ Kg8 45. Qe8+ Kg7 46. Qe7+ Kh8 47. Qf6+ Kg8 48. Qg6+ (48. Qxd6 $2 Qh1#) 48... Kh8 49. Qh6+ Kg8 50. Qg6+ (50. Qxd6 $2 Qh1#) 50... Kh8 51. Qh6+ Kg8 52. Qe6+ Kg7 53. Qd7+ Kh8 54. Qd8+ Kh7 55. Qe7+ Kg8 56. Qd8+ Kf7 57. Qd7+ Kg8 58. Qe6+ Kh7 59. Qf7+ Kh6 60. Qf6+ Kh7 61. Qf7+ Kh6 62. Qf6+ Kh7 63. Qe7+ Kg8 $11) 42. Kh2 {[%emt 0:00:01][%cal Ob7e7]} f4 {[%emt 0:00:02]} 43. gxf4 {[%emt 0:00:02]} Qxf4+ {[%emt 0:00:01]} 44. Kh3 {[%emt 0:00:01]} Qe3+ {[%emt 0:00:02]} 45. Kg2 {[%emt 0:00:01]} Qd2+ {[%emt 0:00:02]} 46. Kf3 {[%emt 0:00:01]} Qxa2 {[%emt 0:00:03]} 47. Qe7 $2 {[%emt 0:00:02]} (47. Qc6 $19 Qb3+ 48. Ke2 Qc2+ 49. Ke3 Qc3+ 50. Ke2 Qc2+) 47... Qb3+ {[%emt 0:00:01]} (47... Qxd5+ $142 48. Ke2 Qe5+ 49. Qxe5 dxe5 50. Kf2 Kf6 51. Kf3 Kf5 52. Ke3 e4 53. Kd2 Ke5 54. Kc3 Kd5 55. Kd2 c4 56. Ke2 Kd4 57. Kf2 c3 58. Ke2 e3 59. Kf3 c2 60. Kf4 e2 (60... c1=R {is a self mate.} 61. Kf5 e2 62. Kg5 e1=Q 63. Kf6 Qe5+ 64. Kf7 Qf5+ 65. Kg8 Rc7 66. Kh8 Qh7#) (60... c1=Q 61. Kf5 e2 62. Kg6 e1=Q 63. Kxh5 Qe5+ 64. Kg6 Qg1+ 65. Kh7 Qh5#) 61. Kg5 e1=Q (61... c1=N 62. Kxh5 e1=Q 63. Kg6 Qe6+ 64. Kg7 Nd3 65. h5 Ne5 66. Kh7 Qf7+ 67. Kh6 Ke3 68. Kg5 Qf4#) 62. Kg6 Qe6+ (62... c1=R 63. Kf6 Qe5+ 64. Kg6 Rg1+ 65. Kf7 Rg7+ 66. Kf8 Qe7#) (62... c1=Q 63. Kxh5 Qe5+ 64. Kg6 Qg1+ 65. Kh7 Qh5#) 63. Kxh5 a6 (63... c1=R $2 64. Kg5 Rg1+ 65. Kh5 Qg6#) (63... Qf5+ 64. Kh6 c1=Q+ 65. Kg7 Qg1+ 66. Kh8 Qh5#) 64. Kg5 c1=Q+ 65. Kh5 Qch6#) 48. Ke2 {[%emt 0:00:01]} Qc4+ {[%emt 0:00:02]} (48... Qxd5 $2 49. Qe8+ Qf7 50. Qe4+ Qf5 51. Qe8+ Kf6 52. Kd2 $19) 49. Kd2 {[%emt 0:00:02]} Qf4+ {[%emt 0:00:01]} 50. Kc3 {[%emt 0:00:03]} (50. Kc2 $19) 50... Qf6+ {[%emt 0:00:01]} 51. Qxf6+ {[%emt 0:00:02]} Kxf6 {[%emt 0:00:17]} 0-1

[Event "European Women Blitz-ch 2024"]
[Site "Monaco"]
[Date "2025.01.10"]
[Round "6.15"]
[White "Osmak, Yuliia"]
[Black "Schulze, Lara"]
[Result "0-1"]
[Annotator "TA"]
[ECO "A29"]
[WhiteElo "2463"]
[BlackElo "2266"]
[PlyCount "146"]
[EventDate "2025.01.06"]
[EventType "swiss"]
[EventCountry "MNC"]
[SourceTitle "playchess.com"]
[Source "ChessBase"]
[SourceQuality "1"]
[TimeControl "180+2"]

{[%evp 13,146,-4,0,-5,4,-1,23,0,10,-4,2,3,22,6,10,0,27,15,35,-13,-16,-18,8,-15,-15,-29,0,0,0,0,0,0,4,0,4,-8,-8,-8,-8,-8,-8,-13,-8,-24,-23,-22,-28,-20,-27,-39,-4,-56,-60,-47,-58,-92,-85,-173,-187,-219,-125,-231,-132,-133,-95,-67,-77,-165,-135,-258,-224,-241,-238,-201,-202,-773,-756,-1264,-1212,-1483,-1460,-1375,-1325,-5677,-5677,-2655,-1494,-1832,-1589,-29986,-29977,-29990,-1295,-29977,-29979,-29979,-29982,-29980,-12449,-6291,-5304,-5318,-1081,-5302,-5285,-29983,-29984,-29984,-29984,-29990,-29989,-29989,-29990,-29991,-29989,-29992,-29993,-29995,-29996,-29996,-29993,-29993,-29993,-29993,-29991,-29991,-29992,-29992,-29989,-29995,-29993,-29997,-29994,-29994,-1431]} 1. c4 {[%emt 0:00:01]} e5 {[%emt 0:00:03]} 2. Nc3 {[%emt 0:00:02]} Nf6 {[%emt 0:00:02]} 3. Nf3 {[%emt 0:00:01]} Nc6 {[%emt 0:00:02]} 4. g3 {[%emt 0:00:02]} Bb4 {[%emt 0:00:01]} 5. Bg2 {[%emt 0:00:03]} Bxc3 {[%emt 0:00:14]} 6. dxc3 {[%emt 0:00:04]} O-O {[%emt 0:00:04]} 7. O-O {[%emt 0:00:01]} d6 {[%emt 0:00:03]} 8. Nh4 {[%emt 0:00:08]} Rb8 {[%emt 0:00:13]} 9. e4 {[%emt 0:00:03]} Ne7 {[%emt 0:00:17]} 10. Be3 {[%emt 0:00:06] White has an edge.} b6 {[%emt 0:00:03]} 11. b3 {[%emt 0:00:05]} Nd7 {[%emt 0:00:10]} 12. Qc2 {[%emt 0:00:10]} Nc5 {[%emt 0:00:06]} 13. Rad1 {[%emt 0:00:09]} Qe8 $1 {[%emt 0:00:05]} 14. Nf5 {[%emt 0:00:21]} Nxf5 {[%emt 0:00:06]} 15. exf5 {[%emt 0:00:01][%cal Of5f6]} Bb7 {[%emt 0:00:05]} 16. f3 {[%emt 0:00:16]} (16. Bxb7 $14 Nxb7 17. Qe4) 16... f6 $11 {[%emt 0:00:04]} 17. Rfe1 {[%emt 0:00:06]} Kh8 {[%emt 0:00:11]} 18. g4 {[%emt 0:00:02]} Qf7 {[%emt 0:00:09]} 19. h4 {[%emt 0:00:01]} Rg8 {[%emt 0:00:11]} 20. h5 {[%emt 0:00:04]} h6 {[%emt 0:00:04]} 21. Qc1 {[%emt 0:00:02]} Kh7 {[%emt 0:00:04]} 22. Qc2 {[%emt 0:00:13]} Kh8 {[%emt 0:00:03]} 23. Qd2 {[%emt 0:00:03]} Kh7 {[%emt 0:00:01]} 24. Qf2 {[%emt 0:00:02]} Rge8 {[%emt 0:00:03]} 25. Bf1 {[%emt 0:00:05]} Rbd8 {[%emt 0:00:08]} 26. Bg2 {[%emt 0:00:12]} a5 {[%emt 0:00:13]} 27. Rd2 {[%emt 0:00:02]} Nd7 {[%emt 0:00:11]} 28. Red1 {[%emt 0:00:02] [#]} a4 $1 {[%emt 0:00:02]} 29. Bf1 {[%emt 0:00:06]} axb3 {[%emt 0:00:01]} 30. axb3 {[%emt 0:00:00]} Ra8 {[%emt 0:00:02]} 31. b4 {[%emt 0:00:04]} Nf8 {[%emt 0:00:03]} 32. c5 {[%emt 0:00:02]} (32. Kg2 $11) 32... bxc5 $15 {[%emt 0:00:04]} 33. bxc5 {[%emt 0:00:01]} d5 {[%emt 0:00:01]} 34. Rb2 {[%emt 0:00:04]} Bc6 {[%emt 0:00:02]} 35. Rdd2 {[%emt 0:00:14]} (35. Rbb1 $17) 35... Ra3 $1 $19 {[%emt 0:00:01]} 36. Rdc2 {[%emt 0:00:05] [#]} Rea8 {[%emt 0:00:03]} ({Black should try} 36... d4 $1 $19 {[%cal Rd4e3]} 37. Bc1 Rxc3 38. Rxc3 dxc3) 37. Qe2 {[%emt 0:00:17] [#]} (37. Bg2 $17 {was worth a try.}) 37... R8a4 {[%emt 0:00:11]} (37... d4 $1 $19 {[%cal Rd4e3]} 38. cxd4 exd4 39. Bxd4 Bxf3 (39... Rxf3 $2 40. Qd1 $19)) 38. Ra2 $17 {[%emt 0:00:02]} Qe8 {[%emt 0:00:07]} 39. Rxa3 {[%emt 0:00:02]} Rxa3 {[%emt 0:00:01]} 40. Qd2 {[%emt 0:00:04]} (40. f4 $17) 40... Qa8 $19 {[%emt 0:00:02]} 41. Rb2 {[%emt 0:00:56]} (41. Kh2 $17) 41... Ra1 {[%emt 0:00:01]} 42. Kf2 {[%emt 0:00:00]} Qa3 {[%emt 0:00:02]} 43. Be2 {[%emt 0:00:00]} Nd7 {[%emt 0:00:03]} 44. Bb5 $2 {[%emt 0:00:00]} (44. Rc2) 44... Bxb5 {[%emt 0:00:04]} 45. Rxb5 {[%emt 0:00:00]} Ra2 {[%emt 0:00:01][%cal Od5d4] Strongly threatening ...d4!} 46. c6 {[%emt 0:00:00]} Rxd2+ {[%emt 0:00:01]} 47. Bxd2 {[%emt 0:00:00]} Nc5 {[%emt 0:00:03]} 48. Be3 {[%emt 0:00:00]} Nd3+ {[%emt 0:00:02]} 49. Ke2 {[%emt 0:00:00]} e4 {[%emt 0:00:02] ( -> ...Qa2+)} 50. fxe4 {[%emt 0:00:00]} dxe4 {[%emt 0:00:01]} 51. Rb7 {[%emt 0:00:00]} Qa2+ {[%emt 0:00:10]} 52. Bd2 {[%emt 0:00:00]} Nc1+ {[%emt 0:00:04]} (52... Qc2 $142 53. Ke3 Ne5 54. g5 Qd3+ (54... Nxc6 $2 55. g6+ Kg8 56. Ke2 $19) 55. Kf2 Qxd2+ 56. Kf1 Qd1+ (56... Qxg5 {leads to mate.} 57. Rb4 Qxf5+ 58. Ke2 Qf3+ 59. Kd2 Qf2+ 60. Kc1 Nd3+ 61. Kb1 Nxb4 62. cxb4 e3 63. Kc1 Qd2+ 64. Kb1 e2 65. b5 e1=Q#) 57. Kg2 Qe2+ (57... Qxh5 $2 58. g6+ Nxg6 59. fxg6+ Kxg6 60. Rb8 $19) 58. Kg3 Qf3+ (58... Nxc6 59. gxf6 Qf3+ 60. Kh2 Ne5 61. Rb2 Qg4 62. Rf2 Nf3+ 63. Rxf3 exf3 64. fxg7 Qg2#) 59. Kh2 Ng4+ (59... Qxc3 60. g6+ Nxg6 61. hxg6+ Kh8 62. Rb8#) 60. Kg1 Qg3+ 61. Kh1 Qh2#) 53. Kd1 {[%emt 0:00:00]} Nb3 {[%emt 0:00:02][%csl Gb3][%cal Ra2d2]} 54. Be3 {[%emt 0:00:00]} Qb1+ {[%emt 0:00:02]} 55. Ke2 {[%emt 0:00:01]} Qd3+ {[%emt 0:00:01]} 56. Kf2 {[%emt 0:00:01]} Qxc3 {[%emt 0:00:06]} 57. Rxc7 {[%emt 0:00:02]} Na5 {[%emt 0:00:01]} 58. Rc8 {[%emt 0:00:07] Wards off Nc4} Nxc6 {[%emt 0:00:02] Hoping for ...Qc2+.} 59. Rc7 {[%emt 0:00:05]} Qb2+ {[%emt 0:00:01] Black mates.} 60. Kf1 {[%emt 0:00:02]} Ne5 {[%emt 0:00:02]} 61. Bc5 {[%emt 0:00:04]} Nd3 {[%emt 0:00:02]} 62. Be3 {[%emt 0:00:03]} Qb1+ {[%emt 0:00:02]} 63. Kg2 {[%emt 0:00:02]} Qa2+ {[%emt 0:00:03]} 64. Kg3 {[%emt 0:00:02]} Qe2 {[%emt 0:00:01]} 65. Bc5 {[%emt 0:00:04]} Qf3+ {[%emt 0:00:03]} 66. Kh2 {[%emt 0:00:02]} Qxg4 {[%emt 0:00:04]} 67. Bd6 {[%emt 0:00:03]} Ne1 {[%emt 0:00:03][%csl Ge1][%cal Rg4g2]} 68. Bg3 {[%emt 0:00:02]} Nf3+ {[%emt 0:00:02]} 69. Kg2 {[%emt 0:00:01]} Nh4+ {[%emt 0:00:03]} 70. Kf2 {[%emt 0:00:02]} Nxf5 {[%emt 0:00:01]} 71. Bh2 {[%emt 0:00:02]} Qf3+ {[%emt 0:00:02]} 72. Kg1 {[%emt 0:00:01]} Nh4 {[%emt 0:00:02][%csl Gh4][%cal Rf3g2]} 73. Rc2 {[%emt 0:00:03]} Qd1+ {[%emt 0:00:02] Weighted Error Value: White=1.00/Black=0.38.  Mistake:       	White=7     	Black=2      Inaccurate:     	White=2     	Black=4      OK:         	White=4     	Black=12     Best:        	White=1     	Black=2      Strong:       	---       	Black=1} (73... e3 $142 74. Bg3 Qxg3+ 75. Kf1 Qf3+ 76. Ke1 Ng2+ (76... Qxh5 {is a self mate.} 77. Re2 Nf3+ 78. Kd1 Nd4 79. Kc1 Qxe2 80. Kb1 Qc2+ 81. Ka1 Nb3#) 77. Rxg2 Qxg2 78. Kd1 Qd2#) 0-1

[Event "European Women Blitz-ch 2024"]
[Site "Monaco"]
[Date "2025.01.10"]
[Round "6.16"]
[White "Dornbusch, Tatiana"]
[Black "Injac, Teodora"]
[Result "0-1"]
[Annotator "TA"]
[ECO "D77"]
[WhiteElo "2234"]
[BlackElo "2453"]
[PlyCount "72"]
[EventDate "2025.01.06"]
[EventType "swiss"]
[EventCountry "MNC"]
[SourceTitle "playchess.com"]
[Source "ChessBase"]
[SourceQuality "1"]
[TimeControl "180+2"]

{[%evp 13,72,21,33,37,42,20,31,24,42,25,40,25,49,15,56,0,70,20,54,15,10,-39,-27,-22,-38,-44,-43,-127,-133,-231,-227,-208,-218,-209,-214,-345,-336,-370,-387,-359,-280,-303,-74,-71,-76,-367,-363,-536,-544,-511,-227,-236,-236,-229,-262,-443,-248,-29971,-29967,-29981,-29982]} 1. d4 {[%emt 0:00:02]} Nf6 {[%emt 0:00:01]} 2. Nf3 {[%emt 0:00:01]} g6 {[%emt 0:00:00]} 3. g3 {[%emt 0:00:01]} Bg7 {[%emt 0:00:01]} 4. Bg2 {[%emt 0:00:01]} O-O {[%emt 0:00:05]} 5. O-O {[%emt 0:00:02]} d5 {[%emt 0:03:05]} 6. c4 {[%emt 0:00:02]} dxc4 {[%emt 0:00:00]} 7. Na3 {[%emt 0:00:01]} a5 {[%emt 0:00:00]} 8. Nxc4 {[%emt 0:00:06]} a4 {[%emt 0:00:00]} 9. Bf4 {[%emt 0:00:11]} Be6 {[%emt 0:00:00]} 10. Rc1 {[%emt 0:00:05]} c6 {[%emt 0:00:00]} 11. a3 {[%emt 0:00:03]} h6 {[%emt 0:00:00]} 12. Qd2 {[%emt 0:00:21]} g5 {[%emt 0:00:00]} 13. Bxb8 {[%emt 0:00:13]} Rxb8 {[%emt 0:00:00]} 14. Qb4 {[%emt 0:00:01]} (14. e3 $14) 14... Ne4 {[%emt 0:00:00]} (14... g4 $11 15. Nfe5 Qxd4) 15. Nb6 {[%emt 0:00:29]} (15. Rfd1 $14) 15... Qd6 {[%emt 0:00:00]} 16. Qxd6 {[%emt 0:00:14]} (16. Qxa4 g4 17. Ne5 Nd2 $11) (16. Nxa4 Qxb4 17. axb4 g4 $15) 16... exd6 {[%emt 0:00:00]} 17. Nxa4 {[%emt 0:00:05]} (17. e3 $11 {should be considered.}) 17... g4 $36 {[%emt 0:00:00][%mdl 2048] Black has the initiative.} 18. Nh4 {[%emt 0:00:09]} Nd2 {[%emt 0:00:00]} 19. Rfd1 {[%emt 0:00:07]} Nb3 {[%emt 0:00:00]} 20. Rc3 {[%emt 0:00:15]} (20. Rc2 $15) 20... Nxd4 $17 {[%emt 0:00:00]} (20... Bxd4 $2 21. Rxb3 Bxf2+ 22. Kxf2 $18) 21. Rcd3 {[%emt 0:00:09]} (21. Re3 $17) 21... Nxe2+ $19 {[%emt 0:00:18]} 22. Kf1 {[%emt 0:00:10]} b5 $1 {[%emt 0:00:01]} 23. Kxe2 {[%emt 0:00:28]} bxa4 {[%emt 0:00:02]} 24. Rxd6 {[%emt 0:00:03]} (24. Bxc6 Rxb2+ (24... Bxb2 $2 25. Bxa4 Bc4 26. Nf5 $19) 25. R3d2) 24... Rxb2+ {[%emt 0:00:07]} (24... Bxb2 25. Bxc6 Bc4+ (25... Bxa3 26. R6d4 $17) 26. Ke3 $19) 25. R1d2 {[%emt 0:00:07]} Bc4+ {[%emt 0:00:01]} 26. Kd1 {[%emt 0:00:06]} Rb1+ {[%emt 0:00:07]} 27. Kc2 {[%emt 0:00:06]} Rfb8 $2 {[%emt 0:00:01]} (27... Re1 $19 {and Black stays clearly on top.} 28. Bxc6 Bb3+ 29. Kd3 Be5) 28. Rd8+ $17 {[%emt 0:00:01]} Bf8 {[%emt 0:00:03] Black is more active. This pair of bishops is nice.} 29. Rxb8 $4 {[%emt 0:00:05][%mdl 8192]} (29. Bxc6 $17 R8b2+ 30. Kc3 Rxd2 31. Kxd2) 29... Rxb8 $19 {[%emt 0:00:01]} 30. Bxc6 {[%emt 0:00:04]} (30. Rd4 $142 Bb3+ 31. Kd3) 30... Bb3+ {[%emt 0:00:01]} (30... Bxa3 31. Bxa4 Be6 32. Rd3 Rb2+ 33. Kc1 Ra2+ (33... Rxf2+ 34. Rxa3 Kg7 35. Bc6 $16) 34. Kd1 $17) 31. Kd3 {[%emt 0:00:08]} Rd8+ {[%emt 0:00:03]} (31... Bxa3 $142 {Strongly threatening ...Rd8+.} 32. Bxa4 Bxa4) 32. Ke2 {[%emt 0:00:05]} Rxd2+ {[%emt 0:00:04]} 33. Kxd2 {[%emt 0:00:01]} Bxa3 {[%emt 0:00:00]} 34. Nf5 $2 {[%emt 0:00:02]} (34. Kc3 {was forced.}) 34... Bb2 {[%emt 0:00:02]} (34... Bb4+ $142 35. Kd3 a3) 35. Ne3 $2 {[%emt 0:00:04]} (35. Nxh6+ $19 Kg7 (35... Kf8 $2 36. Bxa4 Bxa4 37. Nxg4 $17) 36. Bxa4 Bxa4 37. Nxg4) 35... a3 {[%emt 0:00:02]} 36. Nc2 {[%emt 0:00:03]} a2 {[%emt 0:00:02]} 0-1